[Event "*** Titled Tuesday Blitz"]
[Site "Chess.com"]
[Date "2021.04.06"]
[Round "3"]
[White "shnitez"]
[Black "jamalm2"]
[Result "1-0"]
[WhiteElo "2480"]
[BlackElo "2020"]
[TimeControl "180+1"]
[EndTime "10:22:59 PDT"]
[Termination "shnitez won by resignation"]

1. c4 {[%clk 0:03:00.9]} 1... c6 {[%clk 0:02:57.4]} 2. Nf3 {[%clk 0:03:00.5]}
2... d5 {[%clk 0:02:56.9]} 3. e3 {[%clk 0:03:01.1]} 3... Nf6 {[%clk 0:02:56.3]}
4. Nc3 {[%clk 0:03:01.5]} 4... e6 {[%clk 0:02:56]} 5. b3 {[%clk 0:03:00.8]} 5...
a6 {[%clk 0:02:54.3]} 6. Bb2 {[%clk 0:02:59.9]} 6... Nbd7 {[%clk 0:02:53.9]} 7.
Qc2 {[%clk 0:02:58.8]} 7... Bd6 {[%clk 0:02:53.5]} 8. Be2 {[%clk 0:02:58]} 8...
O-O {[%clk 0:02:50.7]} 9. Rg1 {[%clk 0:02:57.6]} 9... b5 {[%clk 0:02:41.5]} 10.
g4 {[%clk 0:02:57.4]} 10... b4 {[%clk 0:02:32.6]} 11. g5 {[%clk 0:02:57.5]}
11... bxc3 {[%clk 0:02:22.7]} 12. gxf6 {[%clk 0:02:57.1]} 12... cxb2 {[%clk
0:02:20.4]} 13. Rxg7+ {[%clk 0:02:56.2]} 1-0

[Event "*** Titled Tuesday Blitz"]
[Site "Chess.com"]
[Date "2021.04.06"]
[Round "3"]
[White "x-4605984566"]
[Black "BahadirOzen"]
[Result "1/2-1/2"]
[WhiteElo "2460"]
[BlackElo "2733"]
[TimeControl "180+1"]
[EndTime "10:23:02 PDT"]
[Termination "Game drawn by agreement"]

1. Nf3 {[%clk 0:03:00.9]} 1... g6 {[%clk 0:03:00.4]} 2. g3 {[%clk 0:03:01.6]}
2... Bg7 {[%clk 0:03:01]} 3. Bg2 {[%clk 0:03:02.5]} 3... d6 {[%clk 0:03:00]} 4.
O-O {[%clk 0:03:02.8]} 4... Nf6 {[%clk 0:03:00.6]} 5. c4 {[%clk 0:03:02.7]} 5...
O-O {[%clk 0:03:00.6]} 6. Nc3 {[%clk 0:03:03.1]} 6... c6 {[%clk 0:03:00.6]} 7.
Rb1 {[%clk 0:03:02.7]} 7... Bf5 {[%clk 0:02:59.5]} 8. d3 {[%clk 0:03:02.4]} 8...
Qc8 {[%clk 0:03:00.1]} 9. Re1 {[%clk 0:03:01.9]} 9... Bh3 {[%clk 0:03:00.1]} 10.
Bh1 {[%clk 0:03:02.3]} 10... a5 {[%clk 0:03:00.5]} 11. a3 {[%clk 0:03:02.3]}
11... e5 {[%clk 0:02:36.4]} 12. b4 {[%clk 0:03:00.2]} 12... axb4 {[%clk
0:02:37.3]} 13. axb4 {[%clk 0:03:01]} 13... Re8 {[%clk 0:02:35.4]} 14. Nd2
{[%clk 0:02:58.4]} 14... Nbd7 {[%clk 0:02:32.3]} 15. b5 {[%clk 0:02:57.7]} 15...
Qc7 {[%clk 0:02:29.6]} 16. Bb2 {[%clk 0:02:50.4]} 16... Be6 {[%clk 0:02:25.6]}
1/2-1/2

[Event "*** Titled Tuesday Blitz"]
[Site "Chess.com"]
[Date "2021.04.06"]
[Round "3"]
[White "Nachsueb"]
[Black "Giorno"]
[Result "0-1"]
[WhiteElo "2195"]
[BlackElo "2513"]
[TimeControl "180+1"]
[EndTime "10:23:05 PDT"]
[Termination "Giorno won by resignation"]

1. d4 {[%clk 0:02:58.3]} 1... d5 {[%clk 0:02:58.5]} 2. c4 {[%clk 0:02:58.1]}
2... e6 {[%clk 0:02:57.4]} 3. Nc3 {[%clk 0:02:58.3]} 3... c6 {[%clk 0:02:57.2]}
4. Nf3 {[%clk 0:02:57.3]} 4... Nf6 {[%clk 0:02:56.6]} 5. Bg5 {[%clk 0:02:57]}
5... Be7 {[%clk 0:02:56.7]} 6. e3 {[%clk 0:02:57.5]} 6... Nbd7 {[%clk
0:02:57.2]} 7. Qc2 {[%clk 0:02:57]} 7... O-O {[%clk 0:02:56.6]} 8. Bd3 {[%clk
0:02:56.3]} 8... dxc4 {[%clk 0:02:57]} 9. Bxc4 {[%clk 0:02:57.2]} 9... b5 {[%clk
0:02:57.5]} 10. Bd3 {[%clk 0:02:57.9]} 10... a6 {[%clk 0:02:54.7]} 11. O-O
{[%clk 0:02:55.8]} 11... h6 {[%clk 0:02:51.3]} 12. Bh4 {[%clk 0:02:55.6]} 12...
c5 {[%clk 0:02:50.2]} 13. dxc5 {[%clk 0:02:43.5]} 13... Nxc5 {[%clk 0:02:49.2]}
14. Be2 {[%clk 0:02:42.8]} 14... Bb7 {[%clk 0:02:43.8]} 15. b4 {[%clk
0:02:42.5]} 15... Nce4 {[%clk 0:02:38.9]} 16. Nxe4 {[%clk 0:02:42.2]} 16... Bxe4
{[%clk 0:02:37.9]} 17. Qb2 {[%clk 0:02:39]} 17... Nd5 {[%clk 0:02:33.7]} 18. a3
{[%clk 0:02:38.2]} 18... Bxh4 {[%clk 0:02:33]} 0-1

[Event "*** Titled Tuesday Blitz"]
[Site "Chess.com"]
[Date "2021.04.06"]
[Round "3"]
[White "PolandHussars"]
[Black "fastestmindalive"]
[Result "1-0"]
[WhiteElo "2611"]
[BlackElo "2794"]
[TimeControl "180+1"]
[EndTime "10:23:14 PDT"]
[Termination "PolandHussars won by resignation"]

1. e4 {[%clk 0:03:00.9]} 1... c5 {[%clk 0:02:59.7]} 2. Ne2 {[%clk 0:03:00.5]}
2... Nc6 {[%clk 0:03:00]} 3. g3 {[%clk 0:03:00.7]} 3... Nf6 {[%clk 0:02:59.8]}
4. Bg2 {[%clk 0:03:01.3]} 4... d5 {[%clk 0:02:53.9]} 5. exd5 {[%clk 0:03:01.3]}
5... Nxd5 {[%clk 0:02:54.8]} 6. d4 {[%clk 0:03:01.6]} 6... e6 {[%clk 0:02:50.7]}
7. O-O {[%clk 0:03:01.1]} 7... Be7 {[%clk 0:02:49.8]} 8. dxc5 {[%clk 0:03:01.2]}
8... Bxc5 {[%clk 0:02:50.7]} 9. c4 {[%clk 0:03:01.4]} 9... Nf6 {[%clk
0:02:48.5]} 10. Qxd8+ {[%clk 0:02:57.6]} 10... Nxd8 {[%clk 0:02:47.6]} 11. a3
{[%clk 0:02:57.4]} 11... O-O {[%clk 0:02:34.5]} 12. b4 {[%clk 0:02:57.3]} 12...
Be7 {[%clk 0:02:34.3]} 13. Nbc3 {[%clk 0:02:57.1]} 13... a5 {[%clk 0:02:27.7]}
14. Rb1 {[%clk 0:02:44.4]} 14... axb4 {[%clk 0:02:22.5]} 15. axb4 {[%clk
0:02:45.3]} 15... e5 {[%clk 0:02:23.2]} 16. Be3 {[%clk 0:02:38.6]} 16... b6
{[%clk 0:02:23.6]} 17. Bxa8 {[%clk 0:02:37]} 1-0

[Event "*** Titled Tuesday Blitz"]
[Site "Chess.com"]
[Date "2021.04.06"]
[Round "3"]
[White "kingofthenil"]
[Black "BendyBear"]
[Result "1-0"]
[WhiteElo "2639"]
[BlackElo "2422"]
[TimeControl "180+1"]
[EndTime "10:23:30 PDT"]
[Termination "kingofthenil won by resignation"]

1. d4 {[%clk 0:02:56]} 1... Nf6 {[%clk 0:02:57.8]} 2. Nf3 {[%clk 0:02:54.4]}
2... c5 {[%clk 0:02:57.9]} 3. dxc5 {[%clk 0:02:20.7]} 3... Na6 {[%clk 0:02:56]}
4. Qd4 {[%clk 0:02:17.4]} 4... g6 {[%clk 0:02:53.1]} 5. e4 {[%clk 0:02:13.1]}
5... Bg7 {[%clk 0:02:52.9]} 6. e5 {[%clk 0:02:08.4]} 6... Ng8 {[%clk 0:02:47]}
7. Bxa6 {[%clk 0:02:06.5]} 7... Qa5+ {[%clk 0:02:44.5]} 8. Nc3 {[%clk
0:02:00.4]} 8... bxa6 {[%clk 0:02:44.2]} 9. O-O {[%clk 0:01:58.9]} 9... Rb8
{[%clk 0:02:44.3]} 10. Bf4 {[%clk 0:01:57.2]} 10... Rxb2 {[%clk 0:02:41.7]} 11.
Rad1 {[%clk 0:01:57.3]} 11... Bb7 {[%clk 0:02:35.7]} 12. Qxd7+ {[%clk
0:01:55.9]} 1-0

[Event "*** Titled Tuesday Blitz"]
[Site "Chess.com"]
[Date "2021.04.06"]
[Round "3"]
[White "eduardoperalta"]
[Black "LenkaPtacnikova"]
[Result "1-0"]
[WhiteElo "2501"]
[BlackElo "2196"]
[TimeControl "180+1"]
[EndTime "10:23:39 PDT"]
[Termination "eduardoperalta won by resignation"]

1. d4 {[%clk 0:03:00.9]} 1... Nf6 {[%clk 0:02:59.1]} 2. c4 {[%clk 0:03:00.2]}
2... e6 {[%clk 0:02:59.2]} 3. Nf3 {[%clk 0:02:58.6]} 3... Bb4+ {[%clk 0:02:59]}
4. Nc3 {[%clk 0:02:57.7]} 4... O-O {[%clk 0:02:54.7]} 5. e3 {[%clk 0:02:57.1]}
5... d5 {[%clk 0:02:50.4]} 6. Bd3 {[%clk 0:02:56.2]} 6... dxc4 {[%clk
0:02:49.6]} 7. Bxc4 {[%clk 0:02:55.4]} 7... c5 {[%clk 0:02:49.8]} 8. O-O {[%clk
0:02:54.9]} 8... Nc6 {[%clk 0:02:47.2]} 9. a3 {[%clk 0:02:51.7]} 9... cxd4
{[%clk 0:02:46.3]} 10. exd4 {[%clk 0:02:50.6]} 10... Bd6 {[%clk 0:02:42.3]} 11.
Bg5 {[%clk 0:02:47.4]} 11... h6 {[%clk 0:02:42.4]} 12. Bh4 {[%clk 0:02:45]}
12... Be7 {[%clk 0:02:36]} 13. Bd3 {[%clk 0:02:41.3]} 13... b6 {[%clk
0:02:33.5]} 14. Re1 {[%clk 0:02:36.9]} 14... Bb7 {[%clk 0:02:29.3]} 15. Bc2
{[%clk 0:02:35.9]} 15... Rc8 {[%clk 0:02:21.8]} 16. Qd3 {[%clk 0:02:32.7]} 16...
g6 {[%clk 0:02:21.9]} 17. Rxe6 {[%clk 0:02:27]} 17... fxe6 {[%clk 0:02:14.5]}
18. Qxg6+ {[%clk 0:02:25.7]} 18... Kh8 {[%clk 0:02:15.1]} 19. Bxf6+ {[%clk
0:02:23.1]} 1-0

[Event "*** Titled Tuesday Blitz"]
[Site "Chess.com"]
[Date "2021.04.06"]
[Round "3"]
[White "mac0504"]
[Black "Matols"]
[Result "1-0"]
[WhiteElo "2526"]
[BlackElo "2293"]
[TimeControl "180+1"]
[EndTime "10:24:01 PDT"]
[Termination "mac0504 won by resignation"]

1. d4 {[%clk 0:03:00.9]} 1... Nf6 {[%clk 0:02:59.1]} 2. Bf4 {[%clk 0:03:00.8]}
2... e6 {[%clk 0:02:58.7]} 3. Nf3 {[%clk 0:03:00.6]} 3... c5 {[%clk 0:02:58.6]}
4. e3 {[%clk 0:02:59.6]} 4... d5 {[%clk 0:02:58.5]} 5. c3 {[%clk 0:02:57.7]}
5... Nc6 {[%clk 0:02:58]} 6. Nbd2 {[%clk 0:02:57.2]} 6... Bd6 {[%clk 0:02:57.9]}
7. Bg3 {[%clk 0:02:55.9]} 7... O-O {[%clk 0:02:57.3]} 8. Be2 {[%clk 0:02:54.2]}
8... b6 {[%clk 0:02:56.8]} 9. O-O {[%clk 0:02:53.6]} 9... Bb7 {[%clk 0:02:55.9]}
10. Ne5 {[%clk 0:02:53.8]} 10... Qc7 {[%clk 0:02:36.1]} 11. f4 {[%clk
0:02:51.7]} 11... Ne4 {[%clk 0:02:31.1]} 12. Nxe4 {[%clk 0:02:45.4]} 12... dxe4
{[%clk 0:02:30.6]} 13. Nc4 {[%clk 0:02:34.9]} 13... f5 {[%clk 0:02:13.7]} 14. d5
{[%clk 0:02:21.3]} 14... Rae8 {[%clk 0:01:51.5]} 15. dxc6 {[%clk 0:02:15.9]} 1-0

[Event "*** Titled Tuesday Blitz"]
[Site "Chess.com"]
[Date "2021.04.06"]
[Round "3"]
[White "CSB7"]
[Black "AsaHoffmann"]
[Result "1-0"]
[WhiteElo "2679"]
[BlackElo "2350"]
[TimeControl "180+1"]
[EndTime "10:24:17 PDT"]
[Termination "CSB7 won by resignation"]

1. e4 {[%clk 0:03:00.9]} 1... d6 {[%clk 0:02:56]} 2. d4 {[%clk 0:02:59.2]} 2...
Nf6 {[%clk 0:02:51.5]} 3. Nc3 {[%clk 0:02:59.5]} 3... c6 {[%clk 0:02:51.2]} 4.
g3 {[%clk 0:02:53.4]} 4... e5 {[%clk 0:02:49.8]} 5. Nge2 {[%clk 0:02:52.3]} 5...
Qc7 {[%clk 0:02:49.1]} 6. Bg2 {[%clk 0:02:50.1]} 6... Be7 {[%clk 0:02:48.1]} 7.
O-O {[%clk 0:02:49.8]} 7... Nbd7 {[%clk 0:02:48]} 8. f4 {[%clk 0:02:48]} 8... b5
{[%clk 0:02:42.2]} 9. a3 {[%clk 0:02:42]} 9... a6 {[%clk 0:02:41.9]} 10. h3
{[%clk 0:02:38.8]} 10... Bb7 {[%clk 0:02:41.5]} 11. g4 {[%clk 0:02:35.8]} 11...
c5 {[%clk 0:02:37.5]} 12. fxe5 {[%clk 0:02:28]} 12... dxe5 {[%clk 0:02:37.1]}
13. d5 {[%clk 0:02:28.6]} 13... O-O {[%clk 0:02:24.6]} 14. Ng3 {[%clk
0:02:20.4]} 14... Ne8 {[%clk 0:02:21.5]} 15. Nf5 {[%clk 0:02:14.8]} 15... Nd6
{[%clk 0:02:19.6]} 16. Nxe7+ {[%clk 0:02:14.5]} 16... Kh8 {[%clk 0:02:18.8]} 17.
Nf5 {[%clk 0:02:07.2]} 1-0

[Event "*** Titled Tuesday Blitz"]
[Site "Chess.com"]
[Date "2021.04.06"]
[Round "3"]
[White "shreyansshah123"]
[Black "MasterMK73"]
[Result "0-1"]
[WhiteElo "1631"]
[BlackElo "2270"]
[TimeControl "180+1"]
[EndTime "10:24:18 PDT"]
[Termination "MasterMK73 won by resignation"]

1. c4 {[%clk 0:03:00.9]} 1... e6 {[%clk 0:02:59]} 2. g3 {[%clk 0:03:00.7]} 2...
d5 {[%clk 0:02:57.9]} 3. cxd5 {[%clk 0:03:00]} 3... exd5 {[%clk 0:02:57.4]} 4.
Bg2 {[%clk 0:02:59.8]} 4... Nf6 {[%clk 0:02:41.5]} 5. d4 {[%clk 0:02:58.7]} 5...
c6 {[%clk 0:02:37.3]} 6. Nc3 {[%clk 0:02:56.5]} 6... Bd6 {[%clk 0:02:36.9]} 7.
Nf3 {[%clk 0:02:50.5]} 7... O-O {[%clk 0:02:36.5]} 8. Bg5 {[%clk 0:02:47]} 8...
Re8 {[%clk 0:02:36]} 9. e3 {[%clk 0:02:41.3]} 9... h6 {[%clk 0:02:34.9]} 10.
Bxf6 {[%clk 0:02:30.5]} 10... Qxf6 {[%clk 0:02:32.7]} 11. O-O {[%clk 0:02:31.4]}
11... Bg4 {[%clk 0:02:29.9]} 12. h3 {[%clk 0:02:25.1]} 12... Bh5 {[%clk
0:02:29.2]} 13. g4 {[%clk 0:02:25.1]} 13... Bg6 {[%clk 0:02:28.8]} 14. Nh4
{[%clk 0:02:24.6]} 14... Qxh4 {[%clk 0:02:27.5]} 15. f4 {[%clk 0:02:24.5]} 15...
Be4 {[%clk 0:02:24.3]} 16. Nxe4 {[%clk 0:02:21.4]} 16... dxe4 {[%clk 0:02:23.9]}
17. Qb3 {[%clk 0:02:20.8]} 17... Qe7 {[%clk 0:02:22.3]} 18. d5 {[%clk
0:02:20.2]} 18... Bc5 {[%clk 0:02:17.6]} 19. Rae1 {[%clk 0:02:15.8]} 19... cxd5
{[%clk 0:02:11.2]} 20. Qxd5 {[%clk 0:02:12.8]} 20... Nc6 {[%clk 0:02:11.2]} 21.
a3 {[%clk 0:02:10.4]} 21... Rad8 {[%clk 0:02:09.6]} 22. Qa2 {[%clk 0:02:06.5]}
22... Rd3 {[%clk 0:02:07.3]} 0-1

[Event "*** Titled Tuesday Blitz"]
[Site "Chess.com"]
[Date "2021.04.06"]
[Round "3"]
[White "parintele_chess"]
[Black "GMaka"]
[Result "0-1"]
[WhiteElo "2244"]
[BlackElo "2469"]
[TimeControl "180+1"]
[EndTime "10:24:19 PDT"]
[Termination "GMaka won by resignation"]

1. e4 {[%clk 0:02:58.8]} 1... c6 {[%clk 0:02:55.3]} 2. d4 {[%clk 0:02:55.9]}
2... d5 {[%clk 0:02:56.2]} 3. f3 {[%clk 0:02:56.8]} 3... Qb6 {[%clk 0:02:55.1]}
4. Nc3 {[%clk 0:02:55.2]} 4... e5 {[%clk 0:02:54.8]} 5. exd5 {[%clk 0:02:53.1]}
5... exd4 {[%clk 0:02:50.3]} 6. Qe2+ {[%clk 0:02:49]} 6... Ne7 {[%clk
0:02:37.2]} 7. d6 {[%clk 0:02:45.8]} 7... dxc3 {[%clk 0:02:35.7]} 8. bxc3 {[%clk
0:02:46.7]} 8... Be6 {[%clk 0:02:32.9]} 9. dxe7 {[%clk 0:02:45.8]} 9... Bxe7
{[%clk 0:02:33.3]} 10. Be3 {[%clk 0:02:42.9]} 10... Qa5 {[%clk 0:02:31.9]} 11.
Bd4 {[%clk 0:02:32.3]} 11... O-O {[%clk 0:02:29.6]} 12. Nh3 {[%clk 0:02:30.1]}
12... Nd7 {[%clk 0:02:17.3]} 13. g4 {[%clk 0:02:23.5]} 13... c5 {[%clk
0:02:16.4]} 14. Nf4 {[%clk 0:02:15.2]} 14... cxd4 {[%clk 0:02:14.1]} 15. Nxe6
{[%clk 0:02:15.3]} 15... Qxc3+ {[%clk 0:02:13.7]} 16. Kf2 {[%clk 0:02:13.5]}
16... Bh4+ {[%clk 0:02:04.5]} 17. Kg2 {[%clk 0:02:13.1]} 17... Rfe8 {[%clk
0:01:53.6]} 0-1

[Event "*** Titled Tuesday Blitz"]
[Site "Chess.com"]
[Date "2021.04.06"]
[Round "3"]
[White "Rodalquilar"]
[Black "googlegoom"]
[Result "1-0"]
[WhiteElo "2671"]
[BlackElo "2434"]
[TimeControl "180+1"]
[EndTime "10:24:24 PDT"]
[Termination "Rodalquilar won by resignation"]

1. d4 {[%clk 0:03:00.9]} 1... d5 {[%clk 0:02:59.5]} 2. Bf4 {[%clk 0:03:00.1]}
2... Nf6 {[%clk 0:02:57.7]} 3. e3 {[%clk 0:03:00.4]} 3... e6 {[%clk 0:02:58.2]}
4. Nf3 {[%clk 0:03:00.3]} 4... c5 {[%clk 0:02:58.8]} 5. Nbd2 {[%clk 0:02:53.7]}
5... Bd6 {[%clk 0:02:58.1]} 6. Bb5+ {[%clk 0:02:53.8]} 6... Nc6 {[%clk
0:02:53.6]} 7. Bg3 {[%clk 0:02:54]} 7... a6 {[%clk 0:02:50.2]} 8. Bxc6+ {[%clk
0:02:48.5]} 8... bxc6 {[%clk 0:02:50.3]} 9. c3 {[%clk 0:02:48.9]} 9... cxd4
{[%clk 0:02:49.8]} 10. cxd4 {[%clk 0:02:48.4]} 10... c5 {[%clk 0:02:49.1]} 11.
Bxd6 {[%clk 0:02:43.4]} 11... Qxd6 {[%clk 0:02:48.4]} 12. Qa4+ {[%clk
0:02:44.3]} 12... Bd7 {[%clk 0:02:47.7]} 13. Qa3 {[%clk 0:02:44.6]} 13... Ne4
{[%clk 0:02:29.6]} 14. Nxe4 {[%clk 0:02:38.3]} 14... dxe4 {[%clk 0:02:29.6]} 15.
Nd2 {[%clk 0:02:39.2]} 15... O-O {[%clk 0:02:09]} 16. Qxc5 {[%clk 0:02:34.8]}
16... Qxc5 {[%clk 0:02:07.6]} 17. dxc5 {[%clk 0:02:35.7]} 17... Rfc8 {[%clk
0:02:07.4]} 18. Rc1 {[%clk 0:02:31.6]} 18... Rab8 {[%clk 0:02:06.7]} 19. b3
{[%clk 0:02:27.8]} 19... Rb5 {[%clk 0:02:04.6]} 20. Nxe4 {[%clk 0:02:27.7]}
20... Bc6 {[%clk 0:01:58]} 21. Nd6 {[%clk 0:02:26.3]} 21... Bxg2 {[%clk
0:01:54.8]} 22. Rg1 {[%clk 0:02:08.4]} 1-0

[Event "*** Titled Tuesday Blitz"]
[Site "Chess.com"]
[Date "2021.04.06"]
[Round "3"]
[White "SergioGarciaFuentes"]
[Black "UKR_Master"]
[Result "1/2-1/2"]
[WhiteElo "2321"]
[BlackElo "2525"]
[TimeControl "180+1"]
[EndTime "10:24:34 PDT"]
[Termination "Game drawn by agreement"]

1. Nf3 {[%clk 0:03:00.9]} 1... Nf6 {[%clk 0:02:59.1]} 2. g3 {[%clk 0:03:00.2]}
2... g6 {[%clk 0:02:58.6]} 3. Bg2 {[%clk 0:03:00]} 3... Bg7 {[%clk 0:02:53.7]}
4. O-O {[%clk 0:02:59.9]} 4... O-O {[%clk 0:02:54.6]} 5. d4 {[%clk 0:02:59.8]}
5... d5 {[%clk 0:02:55.1]} 6. c4 {[%clk 0:02:58.6]} 6... dxc4 {[%clk 0:02:54.6]}
7. Na3 {[%clk 0:02:57.8]} 7... c3 {[%clk 0:02:54]} 8. bxc3 {[%clk 0:02:57.2]}
8... c5 {[%clk 0:02:54.9]} 9. Ne5 {[%clk 0:02:51.8]} 9... cxd4 {[%clk
0:02:48.8]} 10. cxd4 {[%clk 0:02:48.7]} 10... Nfd7 {[%clk 0:02:44]} 11. Nac4
{[%clk 0:02:37.2]} 11... Nxe5 {[%clk 0:02:36.7]} 12. Nxe5 {[%clk 0:02:22.7]}
12... Nd7 {[%clk 0:02:34.5]} 13. Nxd7 {[%clk 0:02:00.8]} 13... Qxd7 {[%clk
0:02:33.3]} 14. Bb2 {[%clk 0:01:48]} 14... e6 {[%clk 0:02:20.2]} 15. Qb3 {[%clk
0:01:34.6]} 1/2-1/2

[Event "*** Titled Tuesday Blitz"]
[Site "Chess.com"]
[Date "2021.04.06"]
[Round "3"]
[White "Romadk"]
[Black "Rodchenkov_Vitalij"]
[Result "1/2-1/2"]
[WhiteElo "2345"]
[BlackElo "2175"]
[TimeControl "180+1"]
[EndTime "10:24:44 PDT"]
[Termination "Game drawn by agreement"]

1. d4 {[%clk 0:03:00.9]} 1... Nf6 {[%clk 0:02:58.1]} 2. Nf3 {[%clk 0:03:01.2]}
2... e6 {[%clk 0:02:58.1]} 3. g3 {[%clk 0:03:01.2]} 3... b5 {[%clk 0:02:55.6]}
4. Bg2 {[%clk 0:03:00.4]} 4... Bb7 {[%clk 0:02:55.8]} 5. O-O {[%clk 0:02:59.1]}
5... c5 {[%clk 0:02:52.7]} 6. Bg5 {[%clk 0:02:49.4]} 6... cxd4 {[%clk
0:02:49.4]} 7. Bxf6 {[%clk 0:02:47.4]} 7... Qxf6 {[%clk 0:02:43.6]} 8. Qxd4
{[%clk 0:02:48.3]} 8... Qxd4 {[%clk 0:02:42.1]} 9. Nxd4 {[%clk 0:02:48.6]} 9...
Bxg2 {[%clk 0:02:42.7]} 10. Kxg2 {[%clk 0:02:49.5]} 10... a6 {[%clk 0:02:41.3]}
11. c3 {[%clk 0:02:45.9]} 11... Nc6 {[%clk 0:02:41.2]} 12. Rd1 {[%clk 0:02:43]}
12... Nxd4 {[%clk 0:02:35.4]} 13. Rxd4 {[%clk 0:02:42.3]} 13... d5 {[%clk
0:02:35.4]} 14. a4 {[%clk 0:02:41.4]} 14... Bc5 {[%clk 0:02:34.4]} 15. Rd3
{[%clk 0:02:40.8]} 15... b4 {[%clk 0:02:31.4]} 16. cxb4 {[%clk 0:02:41.7]} 16...
Bxb4 {[%clk 0:02:31.6]} 17. Rb3 {[%clk 0:02:34]} 17... a5 {[%clk 0:02:29.7]} 18.
Nc3 {[%clk 0:02:33.3]} 18... O-O {[%clk 0:02:27.6]} 19. Nb5 {[%clk 0:02:33.1]}
19... Rfc8 {[%clk 0:02:24.7]} 20. Kf3 {[%clk 0:02:25.6]} 20... Rc2 {[%clk
0:02:01]} 21. Rd1 {[%clk 0:02:21]} 21... Rac8 {[%clk 0:01:57.8]} 22. Nd4 {[%clk
0:02:16.7]} 22... R2c4 {[%clk 0:01:41.8]} 23. Nb5 {[%clk 0:02:13]} 23... Rc2
{[%clk 0:01:38.4]} 24. Nd4 {[%clk 0:02:12.3]} 1/2-1/2

[Event "*** Titled Tuesday Blitz"]
[Site "Chess.com"]
[Date "2021.04.06"]
[Round "3"]
[White "NFork"]
[Black "MustafayevFarid2004"]
[Result "1-0"]
[WhiteElo "2068"]
[BlackElo "2464"]
[TimeControl "180+1"]
[EndTime "10:25:08 PDT"]
[Termination "NFork won by resignation"]

1. Nf3 {[%clk 0:03:00.9]} 1... d5 {[%clk 0:02:59.6]} 2. b3 {[%clk 0:03:00.4]}
2... c6 {[%clk 0:03:00.4]} 3. Bb2 {[%clk 0:03:00.6]} 3... Nf6 {[%clk 0:03:00.5]}
4. e3 {[%clk 0:03:00.8]} 4... g6 {[%clk 0:03:00.7]} 5. c4 {[%clk 0:03:00.8]}
5... Bg7 {[%clk 0:03:01.1]} 6. cxd5 {[%clk 0:03:01]} 6... cxd5 {[%clk 0:03:02]}
7. Be2 {[%clk 0:03:00.4]} 7... O-O {[%clk 0:03:02.4]} 8. O-O {[%clk 0:03:00.5]}
8... Nc6 {[%clk 0:03:02.9]} 9. d4 {[%clk 0:03:00.5]} 9... Bg4 {[%clk 0:03:03.3]}
10. Nc3 {[%clk 0:03:00.5]} 10... e6 {[%clk 0:03:03.4]} 11. Ne5 {[%clk
0:03:00.4]} 11... Bxe2 {[%clk 0:03:02.6]} 12. Qxe2 {[%clk 0:03:01.3]} 12... Nxe5
{[%clk 0:03:03]} 13. dxe5 {[%clk 0:03:01.8]} 13... Nd7 {[%clk 0:03:03.9]} 14. f4
{[%clk 0:03:01.9]} 14... a6 {[%clk 0:03:01.8]} 15. e4 {[%clk 0:03:00.1]} 15...
d4 {[%clk 0:02:53]} 16. Nd1 {[%clk 0:02:59.4]} 16... Nc5 {[%clk 0:02:52.3]} 17.
Nf2 {[%clk 0:02:54.7]} 17... d3 {[%clk 0:02:45.8]} 18. Qe3 {[%clk 0:02:54.3]}
18... Rc8 {[%clk 0:02:37.3]} 19. Rfd1 {[%clk 0:02:52]} 19... Qa5 {[%clk
0:02:31]} 20. Nxd3 {[%clk 0:02:40.8]} 20... Nxd3 {[%clk 0:02:27.1]} 21. Rxd3
{[%clk 0:02:41.7]} 21... Rc2 {[%clk 0:02:24.8]} 22. Bc3 {[%clk 0:02:25.1]} 22...
Qa3 {[%clk 0:02:18.1]} 23. Rd2 {[%clk 0:02:18.8]} 23... Rc1+ {[%clk 0:02:10.1]}
24. Rxc1 {[%clk 0:02:09.2]} 24... Qxc1+ {[%clk 0:02:10.9]} 25. Kf2 {[%clk
0:02:08.8]} 25... Bh6 {[%clk 0:02:09]} 26. Bb4 {[%clk 0:02:03.3]} 26... Rc8
{[%clk 0:02:02.2]} 27. Rd8+ {[%clk 0:01:55.2]} 1-0

[Event "*** Titled Tuesday Blitz"]
[Site "Chess.com"]
[Date "2021.04.06"]
[Round "3"]
[White "Treacherous_horse64"]
[Black "lukazz029"]
[Result "1-0"]
[WhiteElo "2410"]
[BlackElo "2121"]
[TimeControl "180+1"]
[EndTime "10:25:08 PDT"]
[Termination "Treacherous_horse64 won by resignation"]

1. d4 {[%clk 0:03:00]} 1... Nf6 {[%clk 0:02:56.4]} 2. c4 {[%clk 0:02:59.5]} 2...
g6 {[%clk 0:02:51.3]} 3. Nc3 {[%clk 0:02:54.7]} 3... Bg7 {[%clk 0:02:51.3]} 4.
e4 {[%clk 0:02:54.4]} 4... d6 {[%clk 0:02:50]} 5. f3 {[%clk 0:02:53.7]} 5... O-O
{[%clk 0:02:47.7]} 6. Be3 {[%clk 0:02:53.7]} 6... e5 {[%clk 0:02:39.9]} 7. Nge2
{[%clk 0:02:53.3]} 7... Nc6 {[%clk 0:02:36.6]} 8. d5 {[%clk 0:02:49.3]} 8... Ne7
{[%clk 0:02:36]} 9. g4 {[%clk 0:02:47.7]} 9... Nd7 {[%clk 0:02:34.1]} 10. Ng3
{[%clk 0:02:44.7]} 10... a5 {[%clk 0:02:28.3]} 11. h4 {[%clk 0:02:43.5]} 11...
f5 {[%clk 0:02:24.4]} 12. gxf5 {[%clk 0:02:43.2]} 12... gxf5 {[%clk 0:02:23.8]}
13. exf5 {[%clk 0:02:41.2]} 13... Nxf5 {[%clk 0:02:23.4]} 14. Nxf5 {[%clk
0:02:40.5]} 14... Rxf5 {[%clk 0:02:24.3]} 15. Bd3 {[%clk 0:02:35]} 15... Rf7
{[%clk 0:02:21.7]} 16. Ne4 {[%clk 0:02:27.3]} 16... Kh8 {[%clk 0:02:06.8]} 17.
Ng5 {[%clk 0:02:26.5]} 17... Re7 {[%clk 0:01:55.1]} 18. Bxh7 {[%clk 0:02:04.5]}
18... Nf6 {[%clk 0:01:48.8]} 19. Bg6 {[%clk 0:02:01]} 19... c5 {[%clk
0:01:40.4]} 20. Nf7+ {[%clk 0:02:00.1]} 20... Rxf7 {[%clk 0:01:36.9]} 21. Bxf7
{[%clk 0:02:01]} 21... Qe7 {[%clk 0:01:34.6]} 22. Bg6 {[%clk 0:01:59.5]} 22...
e4 {[%clk 0:01:33.3]} 23. fxe4 {[%clk 0:01:56.5]} 23... Nxe4 {[%clk 0:01:30.3]}
24. Qh5+ {[%clk 0:01:56.3]} 1-0